bitfinex/quotes_SOLUSD_20251106
["timestamp","ask_amount","ask_price","bid_price","bid_amount"]
[1762444000075,7.75151494,156.01,155.93,0.71]
[1762444000252,7.75151494,156.01,155.94,7.07151494]
[1762444000451,7.07151494,156.0,155.89,20.592]
[1762444000761,7.75151494,156.0,155.93,7.07151494]
[1762444001555,7.07151494,155.98,155.91,7.07151494]
[1762444001759,7.07151494,155.95,155.88,7.07151494]
[1762444002055,27.00216511,156.01,155.93,7.07151494]
[1762444002253,7.07151494,155.99,155.92,7.07151494]
[1762444002470,7.07151494,155.99,155.91,7.07151494]
[1762444002679,1.48128205,156.0,155.85,22.68390541]
[1762444002680,7.07151494,155.96,155.89,7.07151494]
[1762444002878,7.07151494,155.94,155.87,7.07151494]
[1762444003178,7.07151494,155.94,155.85,0.71]
[1762444003179,7.07151494,155.93,155.86,7.07151494]
[1762444003375,7.75151494,155.94,155.87,7.07151494]
[1762444003562,0.68,155.94,155.87,7.07151494]
[1762444003762,8.86153895,155.95,155.86,7.07151494]
[1762444003763,7.07151494,155.93,155.86,7.07151494]
[1762444004480,7.75151494,155.94,155.87,7.78151494]
[1762444004781,1.48159035,155.94,155.85,7.07151494]
[1762444004970,7.07151494,155.9,155.81,0.71]
[1762444005155,7.75151494,155.93,155.85,7.07151494]
[1762444005566,7.75151494,155.92,155.85,7.07151494]
[1762444005952,7.07151494,155.94,155.87,7.07151494]
[1762444006263,7.07151494,155.92,155.85,7.07151494]
[1762444006656,7.75151494,155.91,155.84,7.07151494]
[1762444007080,7.07151494,155.87,155.75,8.267428]
[1762444007259,8.04,155.86,155.76,0.71]
[1762444007464,8.04,155.86,155.81,7.07151494]
[1762444007862,8.04,155.86,155.83,7.07151494]
[1762444008068,8.04,155.86,155.82,7.78151494]
[1762444008365,8.04,155.86,155.82,0.71]
[1762444008554,8.04,155.86,155.81,7.07151494]
[1762444008749,8.04,155.86,155.79,0.71]
[1762444008954,8.04,155.86,155.81,7.07151494]
[1762444009368,8.04,155.86,155.83,7.07151494]
[1762444009674,0.68,155.93,155.85,7.07151494]
[1762444009857,0.68,155.92,155.86,7.07151494]
[1762444010059,7.75151494,155.92,155.85,7.07151494]
[1762444010287,0.68,155.92,155.86,7.07151494]
[1762444010583,0.68,155.92,155.84,7.07151494]
[1762444010584,7.75151494,155.91,155.84,7.07151494]
[1762444010769,7.07151494,155.92,155.85,7.07151494]
[1762444010955,8.04,155.93,155.87,7.07151494]
[1762444011462,8.04,155.93,155.88,7.07151494]
[1762444011658,8.04,155.93,155.86,0.71]
[1762444011855,0.68,155.92,155.86,7.07151494]
[1762444012268,8.04,155.93,155.86,7.07151494]
[1762444012269,15.79151494,155.93,155.86,7.07151494]
[1762444012657,8.04,155.93,155.89,7.07151494]
[1762444012861,0.68,155.97,155.91,7.07151494]
[1762444013168,0.68,155.97,155.87,7.79151494]
[1762444013169,7.07151494,155.95,155.87,7.79151494]
[1762444013383,7.07151494,155.94,155.87,7.79151494]
[1762444013608,7.07151494,155.94,155.87,0.72]
[1762444013882,7.75151494,155.93,155.85,7.07151494]
[1762444014085,7.07151494,155.92,155.85,7.07151494]
[1762444014272,0.68,155.93,155.86,7.07151494]
[1762444014588,7.75151494,155.93,155.86,7.07151494]
[1762444014763,7.75151494,155.93,155.85,7.07151494]
[1762444014964,7.75151494,155.92,155.83,0.72]
[1762444015165,19.27,155.91,155.84,7.07151494]
[1762444015384,7.21394559,155.95,155.85,7.07151494]
[1762444015684,7.21329243,155.97,155.88,7.07151494]
[1762444015886,7.07151494,155.93,155.86,7.07151494]
[1762444016084,7.07151494,155.93,155.85,7.07151494]
[1762444016283,0.68,155.92,155.85,7.07151494]
[1762444016488,8.04,155.91,155.85,7.79151494]
[1762444017096,8.04,155.91,155.85,0.72]
[1762444017273,8.04,155.91,155.84,7.07151494]
[1762444017484,8.04,155.91,155.85,7.07151494]
[1762444017796,8.72,155.91,155.84,0.72]
[1762444018092,8.72,155.91,155.84,14.20835071]
[1762444018290,8.72,155.91,155.85,7.07151494]
[1762444019383,15.79151494,155.91,155.84,7.79151494]
[1762444019560,8.72,155.91,155.84,7.79151494]
[1762444019766,8.72,155.91,155.82,7.07151494]
[1762444019767,112.45151494,155.9,155.82,7.07151494]
[1762444019970,7.07151494,155.88,155.81,0.72]
[1762444020174,0.68,155.87,155.81,0.72]
[1762444020379,7.75151494,155.87,155.79,7.07151494]
[1762444020580,7.07151494,155.86,155.78,7.79151494]
[1762444020773,7.07151494,155.83,155.75,7.07151494]
[1762444020997,9.52205325,155.85,155.75,7.07151494]
[1762444021177,0.80205325,155.85,155.78,7.07151494]
[1762444021377,0.80179602,155.9,155.82,7.07151494]
[1762444021700,8.72,155.92,155.86,7.07151494]
[1762444022202,15.79151494,155.92,155.85,7.07151494]
[1762444022373,15.79151494,155.92,155.86,7.07151494]
[1762444022374,8.72,155.92,155.86,7.07151494]
[1762444022573,3.35363349,155.96,155.89,7.07151494]
[1762444022795,11.39363349,155.96,155.9,7.07151494]
[1762444023005,25.55714543,155.96,155.84,0.94670754]
[1762444023185,7.07151494,155.95,155.85,0.72]
[1762444023387,7.07151494,155.9,155.83,0.22670754]
[1762444023596,20.592,155.94,155.83,0.72]
[1762444023597,7.07151494,155.89,155.83,0.72]
[1762444023798,15.11151494,155.9,155.83,7.79151494]
[1762444024007,11.10514843,155.96,155.88,7.07151494]
[1762444024309,7.07151494,155.92,155.84,0.72]
[1762444024489,7.07151494,155.95,155.88,7.07151494]
[1762444024902,7.07151494,155.95,155.88,7.79151494]
[1762444025295,11.39363349,155.96,155.88,7.79151494]
[1762444025601,7.07151494,155.95,155.88,7.79151494]
[1762444025785,7.07151494,155.95,155.88,0.72]
[1762444025991,7.07151494,155.94,155.88,7.79151494]
[1762444026298,8.04,155.96,155.89,7.79151494]
[1762444026499,7.07151494,155.95,155.89,0.72]
[1762444026878,7.07151494,155.94,155.89,0.72]
[1762444027401,0.80153895,155.95,155.89,0.72]
[1762444027582,28.632,155.96,155.89,7.79151494]
[1762444027778,28.632,155.96,155.9,7.07151494]
[1762444027779,35.70351494,155.96,155.9,7.07151494]
[1762444027980,7.07151494,155.95,155.89,7.79151494]
[1762444028202,35.70351494,155.96,155.89,7.79151494]
[1762444028409,8.04,155.96,155.9,0.72]
[1762444028615,15.11151494,155.99,155.92,7.07151494]
[1762444028905,7.07151494,155.94,155.87,0.72]
[1762444029204,7.07151494,155.94,155.83,0.22645704]
[1762444029205,7.07151494,155.93,155.88,0.72]
[1762444029387,14.62267061,155.98,155.88,0.72]
[1762444029388,20.592,155.96,155.88,0.72]
[1762444029591,7.07151494,155.91,155.85,7.07151494]
[1762444029791,7.07151494,155.92,155.88,0.72]
[1762444029978,8.04,155.93,155.88,0.72]
[1762444030177,7.07151494,155.92,155.88,0.72]
[1762444030383,7.07151494,155.92,155.79,0.22695702]
[1762444030384,7.07151494,155.89,155.83,0.72]
[1762444030599,31.28771759,155.93,155.83,0.72]
[1762444030600,0.68,155.91,155.83,7.79151494]
[1762444030800,7.07151494,155.91,155.85,7.07151494]
[1762444030993,7.07151494,155.91,155.84,0.72]
[1762444031386,7.07151494,155.87,155.78,8.04]
[1762444031586,0.68,155.9,155.71,0.22738386]
[1762444031587,7.07151494,155.85,155.71,0.22778086]
[1762444031807,7.07151494,155.85,155.79,7.79151494]
[1762444031988,15.11151494,155.86,155.8,7.07151494]
[1762444032189,15.11151494,155.86,155.81,0.72]
[1762444032502,8.04,155.86,155.82,7.07151494]
[1762444032711,8.04,155.86,155.81,7.79151494]
[1762444032912,8.04,155.86,155.79,7.07151494]
[1762444032913,7.07151494,155.85,155.79,7.07151494]
[1762444033091,8.04,155.86,155.81,0.72]
[1762444033284,7.07151494,155.85,155.81,0.72]
[1762444033609,0.80169317,155.92,155.83,7.07151494]
[1762444033814,0.80169317,155.92,155.84,7.07151494]
[1762444033815,8.04,155.91,155.84,7.07151494]
[1762444034109,7.07151494,155.91,155.85,7.79151494]
[1762444034278,15.11151494,155.92,155.86,7.79151494]
[1762444034482,8.04,155.92,155.87,7.07151494]
[1762444034678,8.04,155.92,155.87,7.79151494]
[1762444034911,15.11151494,155.92,155.87,0.72]
[1762444035121,15.11151494,155.92,155.85,0.72]
[1762444035122,7.07151494,155.91,155.85,0.72]
[1762444035295,7.07151494,155.88,155.82,7.07151494]
[1762444035606,7.07151494,155.89,155.8,0.72]
[1762444035809,7.07151494,155.89,155.79,6.64647961]
[1762444035810,7.07151494,155.89,155.83,7.07151494]
[1762444036017,7.07151494,155.89,155.83,7.79151494]
[1762444036188,7.07151494,155.87,155.81,7.07151494]
[1762444036392,0.80174459,155.91,155.83,7.07151494]
[1762444036621,15.11151494,155.9,155.84,7.07151494]
[1762444036807,8.04,155.9,155.86,7.07151494]
[1762444036992,15.11151494,155.9,155.84,7.07151494]
[1762444037192,7.07151494,155.88,155.83,0.72]
[1762444037722,7.07151494,155.86,155.8,7.79151494]
[1762444037919,0.68,155.87,155.8,0.72]
[1762444038099,7.07151494,155.86,155.8,7.79151494]
[1762444038296,7.07151494,155.86,155.8,0.72]
[1762444038515,7.07151494,155.84,155.77,0.72]
[1762444038693,7.07151494,155.83,155.78,7.79151494]
[1762444038896,7.07151494,155.82,155.78,0.72]
[1762444039094,8.04,155.84,155.8,7.07151494]
[1762444039301,8.04,155.89,155.83,7.07151494]
[1762444039606,7.75151494,155.92,155.86,7.07151494]
[1762444039795,15.11151494,155.92,155.86,7.07151494]
[1762444040001,7.07151494,155.89,155.83,7.07151494]
[1762444040204,7.07151494,155.9,155.84,7.07151494]
[1762444040431,7.07151494,155.91,155.85,7.07151494]
[1762444040598,7.07151494,155.91,155.86,7.07151494]
[1762444040802,7.07151494,155.9,155.85,7.07151494]
[1762444041016,7.07151494,155.89,155.83,7.07151494]
[1762444041215,7.07151494,155.88,155.83,7.07151494]
[1762444041420,7.07151494,155.88,155.83,0.72]
[1762444041618,7.07151494,155.87,155.83,0.72]
[1762444041813,7.07151494,155.88,155.83,0.72]
[1762444042020,0.68,155.9,155.83,0.72]
[1762444042021,7.07151494,155.87,155.83,0.72]
[1762444042705,0.68,155.9,155.83,0.72]
[1762444043026,7.07151494,155.88,155.83,0.72]
[1762444043431,7.07151494,155.89,155.83,7.79151494]
[1762444043652,0.67,155.97,155.88,7.07151494]
[1762444043843,7.07151494,155.97,155.91,7.07151494]
[1762444044210,8.04,155.98,155.92,7.76151494]
[1762444044211,15.11151494,155.98,155.92,7.76151494]
[1762444044511,7.07151494,155.96,155.91,0.69]
[1762444044717,8.04,155.98,155.93,7.07151494]
[1762444045034,7.07151494,155.94,155.88,0.69]
[1762444045243,7.07151494,155.93,155.88,0.69]
[1762444045408,22.06343617,155.97,155.85,7.07151494]
[1762444045615,7.07151494,155.93,155.87,7.76151494]
[1762444045921,7.07151494,155.92,155.87,0.69]
[1762444046502,7.07151494,155.9,155.87,0.69]
[1762444046730,7.07151494,155.9,155.83,20.592]
[1762444046731,0.67,155.98,155.88,7.76151494]
[1762444046908,7.07151494,155.95,155.89,7.07151494]
[1762444047224,3.35215672,156.0,155.93,7.07151494]
[1762444047531,11.39215672,156.0,155.92,7.07151494]
[1762444047716,7.07151494,155.96,155.9,7.76151494]
[1762444048040,7.07151494,155.95,155.9,7.76151494]
[1762444048343,7.07151494,155.93,155.87,7.07151494]
[1762444048509,7.07151494,155.93,155.89,0.69]
[1762444048831,0.67,155.98,155.89,0.69]
[1762444049013,7.07151494,155.95,155.89,7.76151494]
[1762444049223,7.07151494,155.94,155.89,0.69]
[1762444049438,8.04,155.96,155.89,0.69]
[1762444049439,7.07151494,155.93,155.89,0.69]
[1762444049616,7.07151494,155.94,155.89,0.69]
[1762444049930,15.11151494,155.96,155.9,7.07151494]
[1762444050126,7.07151494,155.95,155.9,7.07151494]
[1762444050439,12.53926467,155.96,155.91,5.18926467]
[1762444050608,12.53926467,155.96,155.91,0.69]
[1762444050809,12.53926467,155.96,155.92,0.69]
[1762444051015,8.04,155.96,155.92,0.69]
[1762444051317,12.53926467,155.96,155.92,0.69]
[1762444051925,3.35215672,156.0,155.93,4.49926467]
[1762444052109,4.49926467,155.99,155.93,4.49926467]
[1762444052311,4.49926467,155.98,155.93,0.69]
[1762444052741,8.04,156.0,155.93,5.18926467]
[1762444052921,8.71,156.0,155.93,0.69]
[1762444053239,4.49926467,155.97,155.94,0.69]
[1762444053433,4.49926467,155.98,155.94,0.69]
[1762444053641,4.49926467,155.99,155.94,5.18926467]
[1762444053946,4.49926467,155.98,155.94,0.69]
[1762444054130,4.49926467,155.97,155.92,5.18926467]
[1762444054436,4.49926467,155.97,155.92,4.49926467]
[1762444054641,8.04,156.0,155.93,5.18926467]
[1762444054805,24.61377851,156.02,155.95,4.49926467]
[1762444055024,32.24809781,156.06,155.98,4.49926467]
[1762444055025,23.12927012,156.06,155.98,4.49926467]
[1762444055224,4.49926467,156.04,155.98,4.49926467]
[1762444055439,4.49926467,156.02,155.96,4.49926467]
[1762444055633,4.49926467,156.03,155.99,0.69]
[1762444055944,8.04,156.05,155.96,4.49926467]
[1762444056147,8.04,156.05,155.97,0.69]
[1762444056349,8.04,156.05,155.83,5.18926467]
[1762444056350,20.592,155.94,155.83,5.18926467]
[1762444056553,8.84164176,155.93,155.84,4.49926467]
[1762444056762,4.49926467,155.92,155.87,4.49926467]
[1762444057127,4.49926467,155.91,155.88,0.71]
[1762444057340,8.04,155.92,155.88,0.71]
[1762444057542,8.04,155.92,155.88,5.20926467]
[1762444057743,12.53926467,155.92,155.88,0.71]
[1762444058053,4.49926467,155.91,155.89,0.71]
[1762444058357,4.49926467,155.9,155.85,10.91562776]
[1762444058539,4.49926467,155.89,155.84,0.71]
[1762444058730,4.49926467,155.87,155.84,0.71]
[1762444058924,0.68,155.91,155.84,0.71]
[1762444059123,4.49926467,155.89,155.84,5.20926467]
[1762444059329,4.49926467,155.88,155.85,0.71]
[1762444059529,4.49926467,155.87,155.85,0.71]
[1762444059833,8.04,155.92,155.85,5.20926467]
[1762444059834,4.49926467,155.9,155.85,5.20926467]
[1762444060134,4.49926467,155.91,155.85,5.20926467]
[1762444060338,4.49926467,155.9,155.86,0.71]
[1762444060654,4.49926467,155.89,155.86,0.71]
[1762444061161,4.49926467,155.9,155.86,0.71]
[1762444061342,8.04,155.92,155.86,5.20926467]
[1762444061536,4.49926467,155.91,155.86,0.71]
[1762444061741,4.49926467,155.91,155.87,0.71]
[1762444062055,4.49926467,155.9,155.87,0.71]
[1762444062432,4.49926467,155.89,155.84,4.49926467]
[1762444062636,4.49926467,155.88,155.83,10.91641498]
[1762444062829,4.49926467,155.9,155.85,5.20926467]
[1762444063267,4.49926467,155.9,155.8,20.592]
[1762444063268,4.49926467,155.87,155.82,5.20926467]
[1762444063440,8.04,155.88,155.82,0.71]
[1762444063641,4.49926467,155.86,155.82,0.71]
[1762444063855,4.49926467,155.87,155.82,0.71]
[1762444064040,12.53926467,155.88,155.83,4.49926467]
[1762444064364,4.49926467,155.88,155.83,4.49926467]
[1762444064681,4.49926467,155.84,155.79,0.71]
[1762444064831,4.49926467,155.8,155.76,0.71]
[1762444065044,4.49926467,155.81,155.76,5.20926467]
[1762444065338,8.04,155.83,155.76,5.20926467]
[1762444065566,4.49926467,155.81,155.77,0.71]
[1762444065949,0.68,155.88,155.8,4.49926467]
[1762444066146,4.49926467,155.88,155.83,4.49926467]
[1762444066366,4.49926467,155.84,155.79,4.49926467]
[1762444066671,4.49926467,155.84,155.79,10.91814287]
[1762444066870,4.49926467,155.84,155.8,0.71]
[1762444067937,4.49926467,155.87,155.82,4.49926467]
[1762444068449,4.49926467,155.87,155.82,5.20926467]
[1762444068650,4.49926467,155.87,155.82,4.49926467]
[1762444068851,4.49926467,155.87,155.83,0.71]
[1762444070786,8.72,155.89,155.8,4.49926467]
[1762444070787,4.49926467,155.85,155.8,4.49926467]
[1762444070979,0.68,155.86,155.79,5.20926467]
[1762444070980,4.49926467,155.84,155.79,5.20926467]
[1762444071357,4.49926467,155.82,155.79,0.71]
[1762444071553,4.49926467,155.8,155.73,0.71]
[1762444071765,8.04,155.81,155.74,0.71]
[1762444071976,4.49926467,155.8,155.75,4.49926467]
[1762444072186,8.04,155.81,155.74,0.71]
[1762444072359,4.49926467,155.77,155.72,4.49926467]
[1762444072690,0.66,155.8,155.73,0.7]
[1762444072691,4.49926467,155.76,155.73,0.7]
[1762444072980,4.49926467,155.76,155.71,0.1]
[1762444072981,0.66,155.76,155.71,0.1]
[1762444073157,4.49926467,155.76,155.71,0.1]
[1762444073362,0.80220767,155.82,155.73,4.49926467]
[1762444073558,0.66,155.82,155.77,4.49926467]
[1762444073767,4.49926467,155.81,155.75,4.49926467]
[1762444073967,4.49926467,155.79,155.73,4.49926467]
[1762444074174,0.66,155.81,155.72,0.7]
[1762444074389,4.49926467,155.79,155.73,4.49926467]
[1762444074769,5.15926467,155.81,155.74,0.7]
[1762444074959,4.49926467,155.78,155.72,4.49926467]
[1762444075579,4.49926467,155.76,155.71,0.1]
[1762444075898,12.53926467,155.76,155.71,0.1]
[1762444076197,12.53926467,155.76,155.71,0.8]
[1762444076390,5.15926467,155.75,155.71,0.1]
[1762444076697,4.49926467,155.75,155.71,0.1]
[1762444076991,5.15926467,155.75,155.71,0.1]
[1762444077206,5.15926467,155.74,155.71,0.1]
[1762444077500,0.66,155.74,155.71,0.1]
[1762444077706,8.7,155.76,155.71,0.1]
[1762444077874,4.49926467,155.74,155.71,0.1]
[1762444078276,5.15926467,155.74,155.71,0.1]
[1762444078590,4.49926467,155.73,155.71,0.1]
[1762444078994,0.80251669,155.76,155.71,0.1]
[1762444079191,5.15926467,155.75,155.71,0.1]
[1762444079503,4.49926467,155.74,155.71,0.1]
[1762444079792,4.49926467,155.72,155.71,0.1]
[1762444080007,4.49926467,155.73,155.71,0.1]
[1762444080311,5.15926467,155.73,155.71,0.1]
[1762444080801,0.66,155.73,155.71,0.1]
[1762444080987,1.46256821,155.75,155.71,0.1]
[1762444081168,14.46024211,155.76,155.72,0.7]
[1762444081169,8.04,155.76,155.72,0.7]
[1762444081373,0.80225916,155.81,155.71,0.1]
[1762444081592,8.7,155.8,155.72,0.7]
[1762444081900,8.7,155.8,155.77,4.49926467]
[1762444081901,8.04,155.8,155.77,4.49926467]
[1762444082214,8.04,155.8,155.79,4.49926467]
[1762444082505,8.04,155.86,155.74,20.592]
[1762444082671,5.15926467,155.85,155.75,0.92794348]
[1762444082876,4.49926467,155.84,155.75,0.92794348]
[1762444083073,6.4164717,155.85,155.76,0.7]
[1762444083275,4.49926467,155.83,155.77,4.49926467]
[1762444083475,4.49926467,155.81,155.76,0.7]
[1762444083688,0.66,155.84,155.71,0.8]
[1762444083689,4.49926467,155.78,155.71,0.8]
[1762444084004,4.49926467,155.77,155.71,5.29926467]
[1762444084215,4.49926467,155.77,155.71,0.8]
[1762444084508,9.78882769,155.83,155.75,4.49926467]
[1762444084509,4.49926467,155.81,155.75,4.49926467]
[1762444084687,8.04,155.84,155.8,4.49926467]
[1762444084884,8.04,155.84,155.83,4.49926467]
[1762444085288,8.04,155.84,155.83,5.19926467]
[1762444085593,4.49926467,155.9,155.83,0.7]
[1762444085914,4.49926467,155.9,155.8,0.22756104]
[1762444085915,4.49926467,155.87,155.82,4.49926467]
[1762444086323,4.49926467,155.88,155.82,5.19926467]
[1762444086496,4.49926467,155.88,155.77,6.41972138]
[1762444086497,4.49926467,155.83,155.72,0.7]
[1762444086697,4.49926467,155.77,155.71,0.1]
[1762444086910,4.49926467,155.75,155.71,0.8]
[1762444087216,4.49926467,155.74,155.71,0.1]
[1762444087419,4.49926467,155.73,155.71,0.1]
[1762444087589,4.49926467,155.72,155.71,0.1]
[1762444088202,0.80251669,155.76,155.71,0.1]
[1762444088203,4.49926467,155.76,155.71,0.1]
[1762444088399,12.53926467,155.76,155.71,0.8]
[1762444088739,4.49926467,155.74,155.71,0.1]
[1762444088918,8.04,155.76,155.72,0.7]
[1762444089105,21.252,155.83,155.74,4.49926467]
[1762444089417,4.49926467,155.77,155.71,0.1]
[1762444089626,4.49926467,155.77,155.72,4.49926467]
[1762444090134,4.49926467,155.77,155.72,0.7]
[1762444090294,4.49926467,155.77,155.73,0.7]
[1762444090495,4.49926467,155.77,155.72,0.7]
[1762444090694,4.49926467,155.76,155.72,0.7]
[1762444090939,4.49926467,155.73,155.71,0.1]
[1762444091108,12.53926467,155.73,155.71,0.1]
[1762444091731,5.15926467,155.72,155.71,0.1]
[1762444091896,5.3019875,155.72,155.71,0.1]
[1762444092100,4.49926467,155.74,155.71,0.1]
[1762444092295,8.04,155.73,155.71,0.1]
[1762444092703,0.66,155.8,155.72,4.49926467]
[1762444092903,4.49926467,155.77,155.71,0.8]
[1762444093105,8.04,155.79,155.71,5.29926467]
[1762444093324,4.49926467,155.76,155.71,0.8]
[1762444093535,4.49926467,155.75,155.71,0.1]
[1762444093718,0.66,155.78,155.71,0.1]
[1762444094040,4.49926467,155.75,155.71,0.1]
[1762444094222,0.66,155.78,155.71,0.1]
[1762444094534,0.66,155.81,155.74,4.49926467]
[1762444094836,12.53926467,155.8,155.74,4.49926467]
[1762444095242,8.04,155.8,155.73,0.7]
[1762444095536,4.49926467,155.79,155.74,4.49926467]
[1762444095908,4.49926467,155.82,155.77,4.49926467]
[1762444096109,8.04,155.81,155.75,0.7]
[1762444096332,8.04,155.81,155.75,4.49926467]
[1762444096640,12.53926467,155.81,155.76,4.49926467]
[1762444096818,4.49926467,155.8,155.74,0.7]
[1762444097007,4.49926467,155.78,155.72,0.7]
[1762444097208,4.49926467,155.77,155.72,0.7]
[1762444097408,4.49926467,155.78,155.72,0.7]
[1762444097640,18.14200179,155.86,155.77,4.49926467]
[1762444097811,4.49926467,155.86,155.81,4.49926467]
[1762444098129,4.49926467,155.82,155.73,21.292]
[1762444098438,4.49926467,155.8,155.75,4.49926467]
[1762444098825,4.49926467,155.8,155.75,0.7]
[1762444099131,4.49926467,155.8,155.76,0.7]
[1762444099348,8.04,155.85,155.78,4.49926467]
[1762444099527,4.49926467,155.84,155.76,0.7]
[1762444099725,4.49926467,155.83,155.77,4.49926467]
[1762444100020,20.592,155.79,155.71,0.1]
[1762444100228,8.04,155.78,155.71,0.8]
[1762444100432,0.80236215,155.79,155.71,7.22216815]
[1762444100611,104.7,155.82,155.78,4.49926467]
[1762444100813,104.7,155.82,155.73,6.42137032]
[1762444101013,8.04,155.83,155.74,0.22817911]
[1762444101221,8.04,155.83,155.75,0.7]
[1762444101412,8.04,155.83,155.81,4.49926467]
[1762444101833,8.04,155.83,155.79,0.7]
[1762444102025,8.04,155.83,155.82,4.49926467]
[1762444102347,12.53926467,155.87,155.82,4.49926467]
[1762444102516,12.53926467,155.87,155.8,0.7]
[1762444102716,8.04,155.87,155.83,4.49926467]
[1762444102944,8.04,155.87,155.77,0.22760487]
[1762444103121,8.04,155.87,155.79,4.49926467]
[1762444103329,0.68,155.89,155.79,4.49926467]
[1762444103330,0.80174459,155.91,155.86,4.49926467]
[1762444103532,104.7,155.92,155.82,20.592]
[1762444103533,104.7,155.92,155.82,20.81909006]
[1762444103754,104.7,155.92,155.83,0.7]
[1762444104058,104.7,155.92,155.87,4.49926467]
[1762444104639,104.7,155.92,155.88,4.49926467]
[1762444104948,104.7,155.92,155.87,4.49926467]
[1762444105117,104.7,155.92,155.89,4.49926467]
[1762444105317,104.7,155.92,155.88,4.49926467]
[1762444105816,5.17926467,155.91,155.86,4.49926467]
[1762444106016,5.17926467,155.91,155.84,0.7]
[1762444106017,4.49926467,155.9,155.84,0.7]
[1762444106320,0.68,155.91,155.85,4.49926467]
[1762444106542,0.68,155.91,155.79,4.49926467]
[1762444106543,0.68,155.91,155.79,0.7]
[1762444106730,0.80179602,155.9,155.81,4.49926467]
[1762444107036,4.49926467,155.87,155.8,0.7]
[1762444107352,4.49926467,155.86,155.81,4.49926467]
[1762444107551,4.49926467,155.84,155.76,0.7]
[1762444107758,4.49926467,155.83,155.78,4.49926467]
[1762444107937,4.49926467,155.83,155.73,16.28037812]
[1762444107938,0.68,155.82,155.76,4.49926467]
[1762444108143,4.49926467,155.81,155.74,0.7]
[1762444108456,12.53926467,155.82,155.74,7.12095201]
[1762444108833,8.04,155.85,155.75,0.92812027]
[1762444109032,8.04,155.85,155.75,7.12026228]
[1762444109233,4.49926467,155.81,155.76,0.7]
[1762444109428,4.49926467,155.8,155.72,0.7]
[1762444109628,4.49926467,155.8,155.71,6.7502699]
[1762444109629,4.49926467,155.79,155.74,4.49926467]
[1762444109943,4.49926467,155.8,155.75,4.49926467]
[1762444110137,4.49926467,155.8,155.73,0.7]
[1762444110363,4.49926467,155.79,155.74,4.49926467]
[1762444110541,4.49926467,155.8,155.75,4.49926467]
[1762444110736,4.49926467,155.84,155.79,4.49926467]
[1762444110943,0.68,155.89,155.83,4.49926467]
[1762444111138,4.49926467,155.91,155.84,0.7]
[1762444111340,8.04,155.92,155.89,4.49926467]
[1762444111549,8.04,155.92,155.84,0.7]
[1762444111878,4.49926467,155.94,155.84,0.7]
[1762444111879,1.68128205,156.0,155.91,4.49926467]
[1762444112037,1.68128205,156.0,155.85,0.22709051]
[1762444112038,4.49926467,155.95,155.85,0.22709051]
[1762444112236,4.49926467,155.95,155.8,1.99999999]
[1762444112237,4.49926467,155.94,155.89,4.49926467]
[1762444112568,7.0727546,155.94,155.89,7.0727546]
[1762444112755,0.68,155.97,155.91,7.0727546]
[1762444112956,7.0727546,155.92,155.83,0.7]
[1762444113148,8.04,155.91,155.86,7.0727546]
[1762444113464,8.04,155.91,155.87,7.0727546]
[1762444113972,8.04,155.91,155.83,7.11723101]
[1762444113973,8.04,155.91,155.9,7.0727546]
[1762444114477,8.04,155.91,155.88,0.7]
[1762444114770,8.04,155.91,155.89,7.0727546]
[1762444114980,0.80133341,155.99,155.9,7.0727546]
[1762444115282,8.24,156.0,155.9,0.7]
[1762444115468,8.24,156.0,155.89,22.6781855]
[1762444115469,8.24,156.0,155.97,7.0727546]
[1762444115638,7.0727546,155.98,155.92,7.0727546]
[1762444115842,7.0727546,155.98,155.88,7.34148753]
[1762444116038,7.7527546,155.99,155.94,7.0727546]
[1762444116269,8.24,156.0,155.97,7.0727546]
[1762444116472,8.24,156.0,155.98,7.0727546]
[1762444116852,8.24,156.0,155.91,0.71]
[1762444116853,8.24,156.0,155.94,0.71]
[1762444117054,8.24,156.0,155.99,7.0727546]